bitfinex/quotes_SOLUSD_20250714
["timestamp","ask_amount","ask_price","bid_price","bid_amount"]
[1752484171167,17.49468397,167.59,167.55,0.68]
[1752484172261,0.71,167.58,167.54,87.18532825]
[1752484172440,0.71,167.58,167.54,93.15401612]
[1752484172644,16.78468397,167.59,167.55,0.68]
[1752484172857,17.49468397,167.59,167.55,0.68]
[1752484175363,22.75171215,167.59,167.55,0.68]
[1752484175553,0.71,167.58,167.54,87.18532825]
[1752484175741,0.71,167.58,167.55,0.68]
[1752484176348,0.71,167.58,167.54,87.21532825]
[1752484176557,0.71,167.58,167.54,87.89532825]
[1752484176756,0.71,167.58,167.54,93.18399768]
[1752484177067,0.71,167.58,167.54,87.89532825]
[1752484177375,6.67734506,167.58,167.54,87.89532825]
[1752484178564,17.49468397,167.57,167.54,87.21532825]
[1752484178769,0.71,167.56,167.54,87.21532825]
[1752484178948,0.71,167.56,167.54,0.03]
[1752484179141,16.78468397,167.57,167.54,0.03]
[1752484179342,17.49468397,167.57,167.54,0.03]
[1752484179566,0.71,167.56,167.54,0.03]
[1752484179872,17.49468397,167.57,167.54,0.03]
[1752484180067,16.78468397,167.57,167.54,0.03]
[1752484180245,0.71,167.56,167.54,0.03]
[1752484180775,0.71,167.55,167.54,0.03]
[1752484181143,17.49468397,167.55,167.54,0.03]
[1752484182845,23.46305162,167.55,167.54,0.03]
[1752484188378,16.78468397,167.55,167.54,0.03]
[1752484189889,17.50468397,167.55,167.54,0.03]
[1752484190060,16.78468397,167.55,167.54,0.03]
[1752484194681,16.78468397,167.55,167.54,0.71]
[1752484194976,16.78468397,167.58,167.54,87.89532825]
[1752484195285,6.02704507,167.59,167.55,0.68]
[1752484195286,16.84468397,167.59,167.55,0.68]
[1752484195586,0.06,167.59,167.55,5.82213547]
[1752484195880,0.06,167.59,167.56,0.68]
[1752484196066,0.06,167.59,167.57,0.68]
[1752484197782,0.06,167.59,167.55,5.82213547]
[1752484197984,0.06,167.59,167.56,0.68]
[1752484198486,0.06,167.59,167.57,0.68]
[1752484199680,0.06,167.59,167.55,5.14213547]
[1752484199873,0.06,167.59,167.54,123.74400046]
[1752484200178,17.56468397,167.59,167.55,0.68]
[1752484200484,16.78468397,167.57,167.54,0.03]
[1752484200871,16.78468397,167.55,167.54,0.03]
[1752484201972,5.96775053,167.57,167.54,0.03]
[1752484202368,16.78468397,167.58,167.55,0.68]
[1752484202572,16.84468397,167.59,167.56,0.68]
[1752484202780,0.72,167.58,167.54,0.03]
[1752484202977,16.78468397,167.57,167.54,0.03]
[1752484203377,16.78468397,167.55,167.54,0.03]
[1752484203978,16.78468397,167.58,167.54,0.71]
[1752484204293,16.84468397,167.59,167.54,31.29]
[1752484204790,16.78468397,167.57,167.54,31.29]
[1752484204991,16.78468397,167.57,167.55,0.68]
[1752484205170,16.78468397,167.58,167.54,30.61]
[1752484205377,16.78468397,167.58,167.55,0.68]
[1752484205574,0.06,167.59,167.56,0.68]
[1752484205775,0.06,167.59,167.56,5.82213547]
[1752484206091,0.06,167.59,167.54,30.61]
[1752484206092,0.06,167.59,167.57,0.68]
[1752484206594,0.06,167.59,167.58,0.68]
[1752484209272,0.06,167.59,167.58,98.97476292]
[1752484210171,0.06,167.59,167.58,105.14276292]
[1752484210680,0.06,167.59,167.58,100.00062745]
[1752484210882,0.06,167.59,167.58,105.14276292]
[1752484211083,0.06,167.59,167.58,87.86532825]
[1752484212694,0.06,167.59,167.58,98.97476292]
[1752484216691,0.06,167.59,167.58,93.15262745]
[1752484216894,0.06,167.59,167.58,87.90532825]
[1752484217778,0.06,167.59,167.58,87.18532825]
[1752484218985,0.06,167.59,167.58,87.90532825]
[1752484219297,0.06,167.59,167.58,87.18532825]
[1752484219808,0.06,167.59,167.58,87.90532825]
[1752484220508,0.06,167.59,167.58,87.18532825]
[1752484221107,0.06,167.59,167.54,31.17213547]
[1752484221108,17.52468397,167.59,167.56,30.78]
[1752484221782,16.84468397,167.59,167.56,31.53]
[1752484221986,16.78468397,167.57,167.56,0.03]
[1752484222391,0.68,167.57,167.56,0.03]
[1752484223887,6.6476553,167.57,167.56,0.03]
[1752484224711,25.07823927,167.57,167.56,0.03]
[1752484225003,16.78468397,167.56,167.54,0.03]
[1752484225211,17.46468397,167.56,167.5,0.03]
[1752484225410,16.78468397,167.54,167.5,0.03]
[1752484225805,16.78468397,167.52,167.5,0.03]
[1752484226315,0.68,167.52,167.5,0.03]
[1752484226983,37.67272406,167.56,167.5,0.03]
[1752484227195,0.68,167.54,167.5,0.03]
[1752484227988,22.75412045,167.52,167.5,0.03]
[1752484228406,23.43412045,167.52,167.5,0.03]
[1752484228602,16.78468397,167.52,167.5,0.03]
[1752484229399,16.78468397,167.55,167.51,0.72]
[1752484229915,6.64846888,167.55,167.51,0.72]
[1752484230794,6.64846888,167.55,167.51,31.48]
[1752484231018,16.78468397,167.56,167.52,0.72]
[1752484231234,23.43270384,167.56,167.53,30.76]
[1752484232401,22.75270384,167.56,167.53,30.76]
[1752484232602,0.68,167.55,167.53,30.76]
[1752484233416,16.78468397,167.53,167.52,87.18532825]
[1752484233792,17.46468397,167.53,167.52,87.18532825]
[1752484234213,23.43376413,167.53,167.52,87.18532825]
[1752484235714,23.43376413,167.53,167.5,0.03]
[1752484236012,16.78468397,167.51,167.5,0.03]
[1752484236209,22.75447681,167.51,167.5,0.03]
[1752484236413,23.43447681,167.51,167.5,0.03]
[1752484237412,0.68,167.53,167.5,0.03]
[1752484237610,16.78468397,167.52,167.5,0.03]
[1752484237814,17.46468397,167.52,167.5,0.03]
[1752484238524,22.75412045,167.52,167.5,0.03]
[1752484240026,5.96918526,167.53,167.5,0.03]
[1752484240202,16.78468397,167.52,167.5,0.75]
[1752484241208,16.78468397,167.52,167.5,0.03]
[1752484241411,16.78468397,167.53,167.51,0.72]
[1752484241609,16.78468397,167.53,167.5,0.03]
[1752484241834,16.78468397,167.53,167.5,0.75]
[1752484242728,16.78468397,167.53,167.5,0.03]
[1752484242729,17.45468397,167.52,167.5,0.03]
[1752484243234,0.67,167.51,167.5,0.03]
[1752484244040,6.63979284,167.51,167.5,0.03]
[1752484244411,5.96908016,167.53,167.5,0.03]
[1752484244733,16.78468397,167.52,167.51,0.03]
[1752484247612,0.73,167.55,167.51,0.75]
[1752484247808,22.81305227,167.55,167.52,0.72]
[1752484248012,22.81305227,167.55,167.51,30.73]
[1752484248239,23.48305227,167.55,167.51,30.73]
[1752484248450,0.67,167.54,167.51,30.73]
[1752484249434,16.78468397,167.52,167.51,0.03]
[1752484249827,0.67,167.52,167.51,0.03]
[1752484250341,23.42412045,167.52,167.51,0.03]
[1752484251120,16.78468397,167.56,167.51,0.03]
[1752484251927,16.78468397,167.56,167.51,0.75]
[1752484252121,16.78468397,167.56,167.51,0.03]
[1752484252645,37.67272406,167.56,167.51,0.03]
[1752484253125,0.23,167.55,167.51,0.03]
[1752484253439,0.23,167.54,167.51,0.03]
[1752484254537,37.67272406,167.56,167.51,0.03]
[1752484254538,16.78468397,167.52,167.51,0.03]
[1752484256526,5.96943648,167.52,167.51,0.03]
[1752484257062,6.19943648,167.52,167.51,0.03]
[1752484257262,5.96943648,167.52,167.51,0.03]
[1752484258342,6.19943648,167.52,167.51,0.03]
[1752484258842,16.78468397,167.53,167.51,0.03]
[1752484259440,17.01468397,167.53,167.51,0.03]
[1752484259942,16.78468397,167.53,167.51,0.03]
[1752484260154,0.23,167.52,167.51,0.03]
[1752484260352,16.78468397,167.53,167.51,0.03]
[1752484260943,5.96943648,167.52,167.51,0.03]
[1752484261259,22.75386041,167.53,167.51,0.03]
[1752484262045,16.78468397,167.53,167.51,0.03]
[1752484262254,16.78468397,167.53,167.52,0.72]
[1752484262456,16.78468397,167.55,167.52,0.72]
[1752484262755,16.78468397,167.55,167.53,0.72]
[1752484264255,5.96837642,167.55,167.51,31.39]
[1752484264637,5.96837642,167.55,167.52,0.72]
[1752484265642,5.96837642,167.55,167.51,30.67]
[1752484265841,5.96837642,167.55,167.52,0.72]
[1752484267063,22.75270799,167.56,167.53,0.72]
[1752484267440,0.06,167.55,167.51,31.39]
[1752484267841,0.06,167.55,167.52,0.72]
[1752484270563,0.29,167.55,167.51,0.03]
[1752484270864,0.23,167.54,167.51,0.03]
[1752484273158,5.96908016,167.53,167.51,0.03]
[1752484273367,5.96908016,167.53,167.51,0.71]
[1752484273671,5.96908016,167.53,167.51,0.03]
[1752484275572,0.06,167.55,167.52,0.68]
[1752484275774,1.8845,167.59,167.52,0.68]
[1752484275775,0.06,167.59,167.54,5.14213547]
[1752484275984,0.06,167.59,167.57,5.14213547]
[1752484276579,0.06,167.59,167.58,0.68]
[1752484279073,0.06,167.59,167.58,31.36]
[1752484281067,0.06,167.59,167.58,36.50213547]
[1752484281566,0.06,167.59,167.58,31.36]
[1752484282083,0.06,167.59,167.58,36.50213547]
[1752484282460,0.06,167.59,167.58,31.36]
[1752484282869,0.06,167.59,167.58,36.50213547]
[1752484283268,0.06,167.59,167.58,31.36]
[1752484283473,0.06,167.59,167.58,36.50213547]
[1752484284694,0.06,167.59,167.58,31.36]
[1752484284878,0.06,167.59,167.58,36.50213547]
[1752484285682,0.06,167.59,167.58,31.36]
[1752484285884,0.06,167.59,167.58,36.50213547]
[1752484286406,0.06,167.59,167.58,123.68746372]
[1752484286778,0.06,167.59,167.58,118.54532825]
[1752484288679,0.06,167.59,167.58,123.68746372]
[1752484291984,0.06,167.59,167.58,118.54532825]
[1752484293174,0.06,167.59,167.58,117.86532825]
[1752484294075,0.06,167.59,167.58,118.54532825]
[1752484294575,0.06,167.59,167.58,117.86532825]
[1752484294989,0.06,167.59,167.58,118.54532825]
[1752484297894,0.06,167.59,167.58,123.68746372]
[1752484299898,0.06,167.59,167.58,123.68746372]
[1752484302382,0.06,167.59,167.58,129.65476292]
[1752484303293,0.06,167.59,167.58,123.68746372]
[1752484305502,0.06,167.59,167.58,129.65476292]
[1752484306108,0.06,167.59,167.58,123.68746372]
[1752484308612,0.06,167.59,167.58,129.65476292]
[1752484309304,0.06,167.59,167.58,118.54532825]
[1752484309512,0.06,167.59,167.58,118.38532825]
[1752484313589,0.06,167.59,167.58,117.70532825]
[1752484313792,0.06,167.59,167.58,87.18532825]
[1752484313994,0.35,167.59,167.57,30.52]
[1752484314203,0.35,167.59,167.54,87.90532825]
[1752484314502,0.35,167.59,167.55,30.52]
[1752484315315,0.29,167.58,167.52,90.08800675]
[1752484315516,0.29,167.58,167.53,30.52]
[1752484315716,16.78468397,167.56,167.53,30.52]
[1752484315921,17.07468397,167.56,167.53,30.52]
[1752484316125,17.07468397,167.56,167.52,120.60800675]
[1752484316331,17.07468397,167.56,167.52,121.32800675]
[1752484316632,16.78468397,167.56,167.52,121.32800675]
[1752484316817,16.78468397,167.56,167.52,120.60800675]
[1752484317002,16.78468397,167.56,167.53,0.72]
[1752484317321,16.78468397,167.56,167.52,121.32800675]
[1752484317621,17.07468397,167.56,167.52,121.32800675]
[1752484317830,5.96836765,167.55,167.52,121.32800675]
[1752484318719,6.25836765,167.55,167.52,33.4226785]
[1752484318919,5.96836765,167.55,167.52,33.4226785]
[1752484319425,5.96836765,167.55,167.52,34.1426785]
[1752484320212,5.96810834,167.56,167.53,0.72]
[1752484320428,5.96810834,167.56,167.54,0.72]
[1752484320925,5.96810834,167.56,167.55,0.72]
[1752484321610,6.25810834,167.56,167.52,2.9026785]
[1752484321818,5.96908016,167.53,167.52,2.9026785]
[1752484322022,22.75376413,167.53,167.52,2.9026785]
[1752484322216,23.04376413,167.53,167.52,2.9026785]
[1752484328128,22.75376413,167.53,167.52,2.9026785]
[1752484328633,23.04376413,167.53,167.52,2.9026785]
[1752484329931,23.04376413,167.53,167.51,0.03]
[1752484330134,5.96979284,167.51,167.48,0.03]
[1752484330340,16.78468397,167.48,167.46,0.2]
[1752484330822,0.29,167.47,167.46,0.2]
[1752484332318,23.04590269,167.47,167.46,0.2]
[1752484333826,22.75590269,167.47,167.46,0.2]
[1752484334418,23.04590269,167.47,167.46,0.2]
[1752484339730,23.04590269,167.47,167.46,1e-08]
[1752484340055,16.78468397,167.46,167.44,1e-08]
[1752484340232,17.07468397,167.46,167.43,0.03]
[1752484340545,0.29,167.45,167.43,0.03]
[1752484341428,0.29,167.45,167.41,0.03]
[1752484341748,16.78468397,167.43,167.41,0.03]
[1752484342156,0.29,167.42,167.41,0.03]
[1752484342822,16.78468397,167.43,167.41,0.03]
[1752484343544,16.78468397,167.43,167.42,0.69]
[1752484343870,5.97264528,167.43,167.42,0.69]
[1752484344545,6.26264528,167.43,167.41,0.03]
[1752484344717,0.29,167.42,167.41,0.03]
[1752484344919,6.26264528,167.43,167.41,0.03]
[1752484345156,5.97264528,167.43,167.41,0.03]
[1752484345453,6.26264528,167.43,167.41,0.03]
[1752484346137,5.97264528,167.43,167.41,0.03]
[1752484346640,16.78468397,167.43,167.42,0.69]
[1752484347722,16.78468397,167.43,167.41,0.03]
[1752484347939,16.78468397,167.43,167.41,0.72]
[1752484348139,5.97277481,167.43,167.41,0.72]
[1752484349534,5.97277481,167.43,167.41,0.03]
[1752484349833,5.97277481,167.43,167.41,0.72]
[1752484350244,43.71308237,167.5,167.41,0.72]
[1752484350557,43.71308237,167.5,167.41,0.03]
[1752484351259,14.92715548,167.48,167.41,0.03]
[1752484351466,10.0,167.47,167.41,0.03]
[1752484352055,24.92715548,167.48,167.41,0.03]
[1752484352372,16.78468397,167.45,167.41,0.03]
[1752484353246,18.36868397,167.45,167.41,0.03]
[1752484353664,16.78468397,167.43,167.41,0.03]
[1752484354049,16.78468397,167.43,167.41,1e-08]
[1752484354358,16.78468397,167.43,167.39,0.2]
[1752484355863,16.78468397,167.41,167.39,0.2]
[1752484356538,16.78468397,167.41,167.39,0.89]
[1752484357362,16.78468397,167.41,167.39,0.2]
[1752484357755,16.78468397,167.41,167.39,0.89]
[1752484358071,22.75839962,167.4,167.39,0.2]
[1752484360461,5.97264528,167.43,167.39,0.89]
[1752484360770,16.78468397,167.42,167.4,0.69]
[1752484360962,16.78468397,167.42,167.39,0.2]
[1752484361176,16.78468397,167.42,167.39,0.89]
[1752484361649,16.78468397,167.42,167.39,0.2]
[1752484361846,20.90301003,167.44,167.4,0.69]
[1752484362045,16.78468397,167.43,167.41,0.69]
[1752484362253,5.97228858,167.44,167.42,0.69]
[1752484362642,5.97228858,167.44,167.4,0.69]
[1752484362843,5.97228858,167.44,167.41,0.72]
[1752484363044,16.78468397,167.43,167.41,0.72]
[1752484364177,16.78468397,167.43,167.39,0.92]
[1752484364557,5.97300203,167.42,167.39,0.92]
[1752484365067,5.97300203,167.42,167.39,0.2]
[1752484365258,5.97300203,167.42,167.39,0.92]
[1752484365569,5.97300203,167.42,167.39,0.2]
[1752484365744,20.9055071,167.42,167.39,0.2]
[1752484368862,16.78468397,167.41,167.39,0.2]
[1752484369378,16.78468397,167.41,167.38,1e-08]
[1752484370259,16.78468397,167.39,167.38,1e-08]
[1752484370665,16.78468397,167.39,167.34,0.2]
[1752484372354,16.78468397,167.37,167.34,0.2]
[1752484373260,47.44468397,167.37,167.34,1e-08]
[1752484373978,57.44468397,167.37,167.34,1e-08]
[1752484374279,16.78468397,167.35,167.34,1e-08]
[1752484374492,18.41208397,167.35,167.31,0.2]
[1752484376419,16.78468397,167.33,167.31,0.2]
[1752484377053,16.78468397,167.33,167.29,1e-08]
[1752484377672,16.78468397,167.33,167.25,0.75]
[1752484377862,26.78468397,167.33,167.25,0.75]
[1752484378376,16.78468397,167.31,167.25,0.03]
[1752484378681,47.46468397,167.31,167.25,0.75]
[1752484379174,16.78468397,167.31,167.25,0.75]
[1752484379358,16.78468397,167.29,167.24,0.03]
[1752484379558,16.78468397,167.27,167.24,0.03]
[1752484380392,5.97871577,167.26,167.24,0.03]
[1752484380574,16.78468397,167.25,167.24,0.03]
[1752484381509,37.1330288,167.37,167.25,1.5406]
[1752484381682,37.1330288,167.37,167.3,5.14213547]
[1752484381683,5.97550044,167.35,167.3,5.14213547]
[1752484381998,5.97550044,167.35,167.28,6.2772]
[1752484381999,5.97550044,167.35,167.31,0.72]
[1752484382370,16.78468397,167.34,167.28,6.9972]
[1752484382607,16.78468397,167.32,167.29,0.72]
[1752484382771,16.78468397,167.32,167.28,6.2772]
[1752484382772,16.78468397,167.32,167.3,0.72]
[1752484383290,16.78468397,167.32,167.28,6.9972]
[1752484383599,5.97692905,167.31,167.29,0.72]
[1752484383974,16.78468397,167.3,167.27,0.72]
[1752484384188,16.78468397,167.3,167.25,2.2606]
[1752484384388,16.78468397,167.3,167.26,0.72]
[1752484384700,16.78468397,167.3,167.24,6.4349]
[1752484384701,16.78468397,167.3,167.27,0.72]
[1752484384876,16.78468397,167.3,167.24,6.4349]
[1752484385072,16.78468397,167.3,167.28,0.72]
[1752484385902,22.76232758,167.29,167.28,0.72]
[1752484386198,5.97764361,167.29,167.24,11.57703547]
[1752484386399,5.97657183,167.32,167.24,11.57703547]
[1752484386593,5.97657183,167.32,167.25,0.72]
[1752484387198,16.78468397,167.31,167.26,5.14213547]
[1752484387386,16.78468397,167.31,167.27,0.72]
[1752484387791,5.97728631,167.3,167.27,0.72]
[1752484388409,5.97664088,167.32,167.27,0.72]
[1752484388922,5.97664088,167.32,167.27,5.86213547]
[1752484389119,5.97664088,167.32,167.28,0.72]
[1752484389608,16.78468397,167.35,167.28,7.50703547]
[1752484389810,16.78468397,167.36,167.29,5.86213547]
[1752484390010,22.75982737,167.36,167.3,0.72]
[1752484390713,22.75982737,167.36,167.31,5.14213547]
[1752484391016,5.9751434,167.36,167.32,5.86213547]
[1752484391308,16.78468397,167.39,167.32,5.86213547]
[1752484391309,16.78468397,167.37,167.33,0.72]
[1752484391510,5.97442944,167.38,167.33,0.72]
[1752484391511,5.97442944,167.38,167.33,5.86213547]
[1752484391692,5.97442944,167.38,167.34,0.72]
[1752484393201,5.97442944,167.38,167.35,5.14213547]
[1752484393512,5.97442944,167.38,167.36,0.71]
[1752484394210,5.97442944,167.38,167.37,0.71]
[1752484394785,5.97364647,167.41,167.37,0.71]
[1752484396112,5.97364647,167.41,167.37,5.85213547]
[1752484396435,5.97364647,167.41,167.38,5.85213547]
[1752484396635,6.03302403,167.42,167.38,5.14213547]
[1752484396798,6.03302403,167.42,167.39,0.71]
[1752484397414,0.06,167.41,167.39,0.71]
[1752484397729,0.06,167.41,167.4,0.71]
[1752484400409,0.06,167.41,167.38,0.71]
[1752484400629,0.06,167.41,167.39,0.71]
[1752484401324,0.06,167.41,167.37,5.14213547]
[1752484401532,0.06,167.41,167.4,0.71]
[1752484402030,0.06,167.41,167.38,0.71]
[1752484402534,0.06,167.41,167.39,0.71]
[1752484404233,0.06,167.41,167.36,0.71]
[1752484405733,16.84468397,167.41,167.36,0.71]
[1752484406236,16.84468397,167.41,167.35,117.88532825]
[1752484407113,16.78468397,167.39,167.35,117.88532825]
[1752484407320,16.78468397,167.39,167.35,31.41]
[1752484407517,16.78468397,167.39,167.36,0.71]
[1752484408552,16.78468397,167.39,167.35,30.7]
[1752484408726,16.78468397,167.39,167.36,0.71]
[1752484409121,5.97442944,167.38,167.36,0.71]
[1752484410030,5.97442944,167.38,167.35,30.7]
[1752484410212,16.78468397,167.37,167.35,30.7]
[1752484410417,16.78468397,167.37,167.33,0.71]
[1752484410612,16.78468397,167.37,167.34,0.71]
[1752484411425,5.9751434,167.36,167.34,0.71]
[1752484411612,5.9751434,167.36,167.35,0.71]
[1752484412145,5.9751434,167.36,167.32,30.62]
[1752484412442,5.9751434,167.36,167.33,0.71]
[1752484412622,5.9751434,167.36,167.34,0.71]
[1752484414246,5.9751434,167.36,167.35,0.71]
[1752484415925,16.78468397,167.39,167.35,0.71]
[1752484417244,20.90800477,167.4,167.36,30.62]
[1752484417451,20.90800477,167.4,167.37,0.71]
[1752484417623,20.90800477,167.4,167.38,0.71]
[1752484419128,22.75839962,167.4,167.39,0.71]
[1752484421832,5.97371565,167.4,167.39,0.71]
[1752484422034,6.03346357,167.41,167.39,0.71]
[1752484422650,6.03346357,167.41,167.4,0.71]
[1752484423452,0.06,167.41,167.4,0.71]
[1752484428049,0.06,167.41,167.38,0.71]
[1752484429054,0.06,167.41,167.37,30.6]
[1752484429273,0.06,167.41,167.39,0.71]
[1752484429873,6.03335881,167.41,167.39,0.71]
[1752484430778,6.03335881,167.41,167.38,0.71]
[1752484431980,16.78468397,167.4,167.34,87.18532825]
[1752484432279,16.78468397,167.4,167.33,31.29]
[1752484432485,18.41458397,167.4,167.33,31.29]
[1752484432695,49.01458397,167.4,167.33,31.29]
[1752484433253,49.01458397,167.4,167.31,0.71]
[1752484434092,16.78468397,167.38,167.31,0.71]
[1752484435775,16.78468397,167.36,167.31,0.71]
[1752484436878,5.97550044,167.35,167.31,0.71]
[1752484438059,5.97550044,167.35,167.31,5.85213547]
[1752484438263,5.97550044,167.35,167.32,0.71]
[1752484438664,5.9747864,167.37,167.32,0.71]
[1752484442153,5.9747864,167.37,167.33,0.71]
[1752484443284,5.9747864,167.37,167.34,0.71]
[1752484444977,5.97550044,167.35,167.3,118.49532825]
[1752484445278,16.78468397,167.34,167.3,30.6]
[1752484445457,16.78468397,167.34,167.28,0.71]
[1752484447056,5.97621466,167.33,167.28,0.71]
[1752484447368,5.97621466,167.33,167.26,117.80532825]
[1752484447574,5.97621466,167.33,167.29,0.71]
[1752484450478,5.97621466,167.33,167.3,0.71]
[1752484453562,5.97621466,167.33,167.31,0.67]
[1752484453764,5.97621466,167.33,167.32,0.67]
[1752484453959,5.97621466,167.33,167.3,31.27]
[1752484455581,20.91085279,167.38,167.31,0.67]
[1752484455781,16.78468397,167.37,167.31,0.67]
[1752484457462,16.78468397,167.35,167.31,0.67]
[1752484459390,5.97585753,167.34,167.31,0.67]
[1752484459686,5.97585753,167.34,167.32,0.67]
[1752484459979,5.97585753,167.34,167.31,0.67]
[1752484461189,5.97585753,167.34,167.3,30.6]
[1752484461387,5.97585753,167.34,167.3,31.27]
[1752484461691,16.78468397,167.33,167.28,118.45532825]
[1752484462269,18.33988397,167.33,167.28,117.78532825]
[1752484462469,18.33988397,167.33,167.24,0.7]
[1752484462764,48.95988397,167.33,167.24,0.7]
[1752484463692,16.78468397,167.31,167.24,0.7]
[1752484465092,16.78468397,167.31,167.25,0.7]
[1752484465894,5.97728631,167.3,167.25,0.7]
[1752484466089,20.92050209,167.3,167.25,0.7]
[1752484467387,16.78468397,167.29,167.26,0.67]
[1752484467694,16.78468397,167.29,167.27,0.67]
[1752484467866,5.97800095,167.28,167.27,0.67]
[1752484468596,5.97800095,167.28,167.26,0.67]
[1752484468991,5.97764361,167.29,167.27,0.67]
[1752484469175,5.97764361,167.29,167.26,0.67]
[1752484469578,5.97764361,167.29,167.25,0.03]
[1752484469792,20.92175264,167.29,167.25,0.03]
[1752484470298,0.06,167.35,167.28,5.14213547]
[1752484470473,0.06,167.35,167.34,5.14213547]
[1752484470799,0.06,167.35,167.34,30.62]
[1752484470978,0.06,167.35,167.34,31.29]
[1752484473306,0.06,167.35,167.32,31.29]
[1752484473487,0.06,167.35,167.32,30.62]
[1752484474087,0.5,167.34,167.32,30.62]
[1752484474285,16.78468397,167.33,167.27,0.67]
[1752484474505,16.78468397,167.33,167.27,31.27]
[1752484475379,16.78468397,167.31,167.27,31.27]
[1752484475573,16.78468397,167.31,167.28,0.67]
[1752484476397,16.78468397,167.31,167.27,30.6]
[1752484476608,16.78468397,167.31,167.29,0.67]
[1752484477690,5.97728631,167.3,167.29,0.67]
[1752484478886,5.97692905,167.31,167.29,0.67]
[1752484480008,37.70161049,167.33,167.29,0.67]
[1752484481404,37.70161049,167.33,167.27,30.6]
[1752484481704,37.70161049,167.33,167.28,0.67]
[1752484481907,37.70161049,167.33,167.29,0.67]
[1752484483007,16.78468397,167.32,167.28,30.6]
[1752484483200,16.78468397,167.32,167.25,0.03]
[1752484483396,16.78468397,167.3,167.25,0.03]
[1752484483598,16.78468397,167.3,167.25,0.7]
[1752484484704,16.78468397,167.3,167.26,0.67]
[1752484485412,5.97764361,167.29,167.26,0.67]
[1752484485788,16.78468397,167.28,167.25,0.03]
[1752484486994,16.78468397,167.28,167.25,0.7]
[1752484487187,16.78468397,167.28,167.25,0.03]
[1752484487394,5.97835834,167.27,167.26,0.67]
[1752484487893,5.9781063,167.28,167.26,0.67]
[1752484488091,16.78468397,167.31,167.26,0.67]
[1752484488284,16.78468397,167.31,167.27,0.67]
[1752484488485,22.76161302,167.31,167.27,0.67]
[1752484488886,22.76161302,167.31,167.28,0.67]
[1752484492798,22.76161302,167.31,167.26,0.67]
[1752484492986,22.76161302,167.31,167.27,0.67]
[1752484494329,22.76161302,167.31,167.26,0.67]
[1752484494829,22.76161302,167.31,167.27,0.67]
[1752484497033,22.76161302,167.31,167.28,0.67]
[1752484497202,22.76161302,167.31,167.28,31.27]
[1752484497396,22.76161302,167.31,167.29,0.67]
[1752484498115,22.76161302,167.31,167.3,0.67]
[1752484498727,16.78468397,167.32,167.3,0.67]
[1752484500229,22.76151767,167.32,167.3,0.67]
[1752484500739,6.47618824,167.34,167.3,0.67]
[1752484500949,0.5,167.34,167.3,5.81213547]
[1752484501243,0.5,167.34,167.31,0.67]
[1752484501544,0.5,167.34,167.32,30.6]
[1752484501745,0.5,167.34,167.33,0.67]
[1752484501950,6.47594308,167.34,167.33,0.67]
[1752484502448,6.47594308,167.34,167.32,30.6]
[1752484502618,6.47594308,167.34,167.33,0.67]
[1752484502825,6.47585753,167.34,167.33,0.67]
[1752484503220,0.5,167.34,167.33,0.67]
[1752484503826,0.5,167.34,167.33,5.81213547]
[1752484505345,0.5,167.34,167.33,11.78835013]
[1752484505532,0.56,167.34,167.33,11.78835013]
[1752484505841,0.06,167.34,167.33,11.78835013]
[1752484508019,0.06,167.34,167.33,98.97367838]